fUST/lending_fUST_20250724
["ID","MTS","AMOUNT","RATE_DAILY","PERIOD"]
[374595591,1753368639766,-460.0,0.00019989,2]
[374595592,1753368639775,-489.26,0.00019989,2]
[374595593,1753368639785,-928.94,0.00019989,2]
[374595594,1753368639794,-460.0,0.00019989,2]
[374595595,1753368639806,-460.0,0.00019989,2]
[374595596,1753368639815,-460.0,0.00019989,2]
[374595597,1753368639824,-371.20407136,0.00019989,2]
[374595598,1753368639833,-460.0,0.0002026,2]
[374595599,1753368639843,-460.0,0.0002026,2]
[374595600,1753368639856,-460.0,0.0002026,2]
[374595601,1753368639866,-460.0,0.0002026,2]
[374595602,1753368639876,-531.46,0.0002026,2]
[374595603,1753368639889,-460.0,0.0002026,2]
[374595604,1753368639899,-460.0,0.0002026,2]
[374595605,1753368639909,-460.0,0.00020261,2]
[374595606,1753368639918,-460.0,0.00020261,2]
[374595607,1753368639928,-910.59,0.00020262,2]
[374595608,1753368639938,-460.0,0.00020262,2]
[374595609,1753368639947,-460.0,0.00020263,2]
[374595610,1753368639958,-460.0,0.00020263,2]
[374595611,1753368639968,-460.0,0.00020263,2]
[374595612,1753368639978,-460.0,0.00020263,2]
[374595613,1753368639987,-460.0,0.00020263,2]
[374595614,1753368639997,-564.03,0.00020263,2]
[374595615,1753368640008,-222.34,0.00020263,2]
[374595616,1753368640017,-460.0,0.00020263,2]
[374595617,1753368640027,-383.16,0.00020263,2]
[374595618,1753368640037,-460.0,0.00020263,2]
[374595619,1753368640048,-928.94,0.00020263,2]
[374595620,1753368640060,-500.66,0.00020263,2]
[374595621,1753368640070,-460.0,0.00020263,2]
[374595622,1753368640080,-460.0,0.00020263,2]
[374595623,1753368640090,-460.0,0.00020534,2]
[374595624,1753368640099,-460.0,0.00020534,2]
[374595625,1753368640109,-460.0,0.00020534,2]
[374595626,1753368640118,-460.0,0.00020534,2]
[374595627,1753368640127,-531.46,0.00020534,2]
[374595628,1753368640137,-460.0,0.00020534,2]
[374595629,1753368640147,-190.75,0.00020534,2]
[374595630,1753368640156,-460.0,0.00020535,2]
[374595631,1753368640166,-460.0,0.00020535,2]
[374595632,1753368640175,-910.59,0.00020536,2]
[374595633,1753368640185,-460.0,0.00020536,2]
[374595634,1753368640195,-460.0,0.00020537,2]
[374595635,1753368640204,-460.0,0.00020537,2]
[374595636,1753368640213,-460.0,0.00020537,2]
[374595637,1753368640223,-460.0,0.00020537,2]
[374595638,1753368640232,-460.0,0.00020537,2]
[374595639,1753368640242,-460.0,0.00020537,2]
[374595640,1753368640252,-460.0,0.00020537,2]
[374595641,1753368640262,-928.94,0.00020537,2]
[374595642,1753368640271,-460.0,0.00020537,2]
[374595643,1753368640281,-460.0,0.00020537,2]
[374595645,1753368640291,-160.0,0.00020731,2]
[374595646,1753368640303,-160.0,0.00020731,2]
[374595647,1753368640312,-476.79463412,0.00020731,2]
[374595648,1753368640322,-214.7213231,0.00020731,2]
[374595649,1753368640331,-160.0,0.0002076,2]
[374595650,1753368640340,-460.0,0.00020808,2]
[374595651,1753368640350,-460.0,0.00020808,2]
[374595652,1753368640360,-460.0,0.00020808,2]
[374595653,1753368640369,-531.46,0.00020808,2]
[374595654,1753368640379,-460.0,0.00020808,2]
[374595655,1753368640388,-559.43,0.00020809,2]
[374595656,1753368640399,-910.59,0.0002081,2]
[374595657,1753368640408,-460.0,0.0002081,2]
[374595658,1753368640417,-460.0,0.00020811,2]
[374595659,1753368640427,-460.0,0.00020811,2]
[374595660,1753368640436,-460.0,0.00020811,2]
[374595661,1753368640446,-460.0,0.00020811,2]
[374595662,1753368640455,-460.0,0.00020811,2]
[374595663,1753368640465,-460.0,0.00020811,2]
[374595664,1753368640474,-460.0,0.00020811,2]
[374595665,1753368640484,-928.94,0.00020811,2]
[374595666,1753368640494,-319.72,0.00020811,2]
[374595667,1753368640503,-488.28,0.00020811,2]
[374595668,1753368640512,-1013.4121708,0.000209,4]
[374595669,1753368640522,-1013.41217068,0.00021072,4]
[374595670,1753368640531,-460.0,0.00021082,2]
[374595671,1753368640541,-460.0,0.00021082,2]
[374595672,1753368640550,-460.0,0.00021082,2]
[374595673,1753368640559,-531.46,0.00021082,2]
[374595674,1753368640569,-460.0,0.00021082,2]
[374595675,1753368640579,-910.59,0.00021084,2]
[374595676,1753368640588,-460.0,0.00021084,2]
[374595677,1753368640598,-460.0,0.00021085,2]
[374595678,1753368640607,-460.0,0.00021085,2]
[374595679,1753368640617,-460.0,0.00021085,2]
[374595680,1753368640626,-460.0,0.00021085,2]
[374595681,1753368640635,-460.0,0.00021085,2]
[374595682,1753368640645,-460.0,0.00021085,2]
[374595683,1753368640655,-928.94,0.00021085,2]
[374595684,1753368640665,-466.0,0.00021177,2]
[374595685,1753368640674,-1013.41217068,0.00021245,4]
[374595686,1753368640684,-460.0,0.00021356,2]
[374595687,1753368640693,-460.0,0.00021356,2]
[374595688,1753368640702,-460.0,0.00021356,2]
[374595689,1753368640712,-531.46,0.00021356,2]
[374595690,1753368640721,-460.0,0.00021356,2]
[374595691,1753368640730,-910.59,0.00021358,2]
[374595692,1753368640740,-460.0,0.00021358,2]
[374595693,1753368640749,-460.0,0.00021359,2]
[374595694,1753368640758,-460.0,0.00021359,2]
[374595695,1753368640769,-460.0,0.00021359,2]
[374595696,1753368640778,-460.0,0.00021359,2]
[374595697,1753368640787,-460.0,0.00021359,2]
[374595699,1753368640797,-928.94,0.00021359,2]
[374595702,1753368640808,-1013.41217068,0.00021417,5]
[374595705,1753368640818,-420.0,0.00021469,2]
[374595708,1753368640828,-1013.41217068,0.0002159,5]
[374595711,1753368640837,-488.0514365,0.0002163,2]
[374595713,1753368640846,-460.0,0.0002163,2]
[374595715,1753368640856,-531.46,0.0002163,2]
[374595717,1753368640866,-460.0,0.0002163,2]
[374595719,1753368640876,-910.59,0.00021632,2]
[374595721,1753368640886,-371.45,0.00021632,2]
[374595722,1753368640895,-460.0,0.00021633,2]
[374595724,1753368640906,-460.0,0.00021633,2]
[374595727,1753368640918,-540.5,0.00021633,2]
[374595729,1753368640929,-460.0,0.00021633,2]
[374595731,1753368640939,-460.0,0.00021633,2]
[374595733,1753368640948,-928.94,0.00021633,2]
[374595735,1753368640957,-500.0,0.00021682,2]
[374595736,1753368640969,-1013.41217068,0.00021762,5]
[374595738,1753368640978,-1956.47,0.00021896,10]
[374595740,1753368640988,-1630.39,0.00021896,10]
[374595742,1753368640997,-460.0,0.00021904,2]
[374595744,1753368641007,-531.46,0.00021904,2]
[374595747,1753368641017,-460.0,0.00021904,2]
[374595748,1753368641027,-910.59,0.00021906,2]
[374595750,1753368641036,-460.0,0.00021907,2]
[374595752,1753368641045,-460.0,0.00021907,2]
[374595754,1753368641056,-460.0,0.00021907,2]
[374595756,1753368641067,-460.0,0.00021907,2]
[374595758,1753368641076,-928.94,0.00021907,2]
[374595760,1753368641086,-1013.41217068,0.00021934,6]
[374595762,1753368641095,-1013.41217068,0.00022107,6]
[374595764,1753368641105,-423.59,0.00022178,2]
[374595765,1753368641114,-531.46,0.00022178,2]
[374595767,1753368641123,-460.0,0.00022178,2]
[374595769,1753368641132,-910.59,0.0002218,2]
[374595771,1753368641141,-460.0,0.00022181,2]
[374595773,1753368641150,-460.0,0.00022181,2]
[374595775,1753368641160,-460.0,0.00022181,2]
[374595777,1753368641169,-460.0,0.00022181,2]
[374595779,1753368641178,-928.94,0.00022181,2]
[374595781,1753368641188,-1013.41217068,0.00022279,6]
[374595783,1753368641198,-1013.41217068,0.00022452,7]
[374595785,1753368641208,-531.46,0.00022452,2]
[374595787,1753368641218,-216.28,0.00022452,2]
[374595789,1753368641227,-910.59,0.00022454,2]
[374595791,1753368641236,-460.0,0.00022455,2]
[374595793,1753368641246,-460.0,0.00022455,2]
[374595795,1753368641255,-460.0,0.00022455,2]
[374595797,1753368641265,-460.0,0.00022455,2]
[374595799,1753368641274,-928.94,0.00022455,2]
[374595800,1753368641286,-630.23415282,0.00022608,2]
[374595802,1753368641297,-215.0738,0.00022608,2]
[374595804,1753368641309,-1013.41217068,0.00022624,7]
[374595807,1753368641319,-531.46,0.00022726,2]
[374595808,1753368641329,-1348.63,0.00022728,2]
[374595810,1753368641338,-910.59,0.00022728,2]
[374595812,1753368641348,-460.0,0.00022729,2]
[374595814,1753368641358,-460.0,0.00022729,2]
[374595815,1753368641368,-460.0,0.00022729,2]
[374595817,1753368641378,-460.0,0.00022729,2]
[374595819,1753368641387,-928.94,0.00022729,2]
[374595821,1753368641397,-151.0,0.00022734,2]
[374595822,1753368641407,-500.0,0.00022734,2]
[374595823,1753368641417,-151.0,0.00022734,2]
[374595824,1753368641427,-151.0,0.00022734,2]
[374595826,1753368641437,-151.0,0.00022734,2]
[374595827,1753368641448,-151.0,0.00022734,2]
[374595828,1753368641458,-151.0,0.00022734,2]
[374595829,1753368641467,-151.0,0.00022734,2]
[374595831,1753368641477,-151.0,0.00022734,2]
[374595834,1753368641634,-151.0,0.00022734,2]
[374595835,1753368641647,-500.0,0.00022734,2]
[374595836,1753368641657,-151.0,0.00022734,2]
[374595837,1753368641667,-151.48953185,0.00022734,2]
[374595838,1753368641677,-151.0,0.00022734,2]
[374595839,1753368641686,-151.0,0.00022734,2]
[374595840,1753368641696,-264.59489077,0.00022734,2]
[374595841,1753368641705,-151.0,0.00022734,2]
[374595843,1753368641715,-151.0,0.00022734,2]
[374595845,1753368641726,-151.0,0.00022734,2]
[374595847,1753368641735,-151.0,0.00022734,2]
[374595849,1753368641745,-239.5938891,0.00022734,2]
[374595851,1753368641754,-151.0,0.00022734,2]
[374595853,1753368641763,-249.59601864,0.00022734,2]
[374595855,1753368641773,-152.54978935,0.00022734,2]
[374595857,1753368641782,-198.0,0.00022734,2]
[374595858,1753368641791,-151.0,0.00022734,2]
[374595860,1753368641802,-151.0,0.00022734,2]
[374595862,1753368641811,-151.0,0.00022734,2]
[374595864,1753368641821,-534.88,0.0002275,2]
[374595866,1753368641830,-943.59,0.0002275,7]
[374595868,1753368641840,-534.88,0.00022762,3]
[374595870,1753368641850,-1013.41217068,0.00022797,7]
[374595872,1753368641859,-985.39,0.000228,7]
[374595874,1753368641868,-534.88,0.0002285,2]
[374595876,1753368641878,-534.88,0.00022862,7]
[374595878,1753368641892,-534.88,0.0002295,3]
[374595880,1753368641901,-534.88,0.00022962,3]
[374595882,1753368641911,-1013.41217068,0.00022969,8]
[374595884,1753368641920,-160.0,0.00023,2]
[374595886,1753368641931,-531.46,0.00023,2]
[374595888,1753368641940,-910.59,0.00023002,2]
[374595890,1753368641951,-460.0,0.00023003,2]
[374595892,1753368641962,-189.86,0.00023003,2]
[374595894,1753368641971,-460.0,0.00023003,2]
[374595896,1753368641980,-487.8,0.00023003,2]
[374595898,1753368641990,-928.94,0.00023003,2]
[374595900,1753368642000,-158.9336033,0.00023008,2]
[374595934,1753368642322,-341.0663967,0.00023008,2]
[374595936,1753368642331,-500.0,0.00023008,2]
[374595938,1753368642341,-151.0,0.00023008,2]
[374595940,1753368642351,-258.15145505,0.00023008,2]
[374595942,1753368642359,-133.82970927,0.00023008,2]
[374596367,1753368646626,-462.15664694,0.00019712,2]
[374596369,1753368646636,-460.0,0.00019712,2]
[374596371,1753368646645,-460.0,0.00019986,2]
[374596373,1753368646655,-460.0,0.0002026,2]
[374596375,1753368646664,-460.0,0.00020534,2]
[374596377,1753368646673,-460.0,0.00020808,2]
[374596379,1753368646683,-228.91,0.00021082,2]
[374596381,1753368646692,-17.17029073,0.00023008,2]
[374596383,1753368646702,-151.0,0.00023008,2]
[374596385,1753368646712,-151.0,0.00023008,2]
[374596387,1753368646721,-534.88,0.0002305,2]
[374596389,1753368646730,-534.88,0.00023062,7]
[374596391,1753368646739,-383.0,0.00023077,2]
[374596393,1753368646748,-383.0,0.00023103,2]
[374596395,1753368646757,-1013.41217068,0.00023141,8]
[374596397,1753368646766,-383.0,0.00023153,2]
[374596399,1753368646776,-534.88,0.00023162,3]
[374596401,1753368646785,-534.88,0.00023262,4]
[374596404,1753368646794,-531.46,0.00023274,2]
[374596406,1753368646804,-910.59,0.00023276,2]
[374596408,1753368646814,-460.0,0.00023277,2]
[374596410,1753368646823,-460.0,0.00023277,2]
[374596412,1753368646832,-928.94,0.00023277,2]
[374596414,1753368646841,-500.0,0.00023282,2]
[374596415,1753368646850,-500.0,0.00023282,2]
[374596418,1753368646859,-198.0,0.00023282,2]
[374596420,1753368646870,-151.0,0.00023282,2]
[374596421,1753368646879,-151.0,0.00023282,2]
[374596424,1753368646893,-151.0,0.00023282,2]
[374596425,1753368646902,-383.0,0.00023289,2]
[374596427,1753368646911,-383.0,0.00023305,2]
[374596429,1753368646921,-1013.41217068,0.00023314,9]
[374596431,1753368646932,-587.0,0.00023385,2]
[374596433,1753368646942,-1013.41217068,0.00023486,9]
[374596435,1753368646952,-703.78,0.000235,5]
[374596437,1753368646964,-531.46,0.00023548,2]
[374596439,1753368646975,-910.59,0.0002355,2]
[374596441,1753368646985,-460.0,0.00023551,2]
[374596443,1753368646994,-460.0,0.00023551,2]
[374596445,1753368647003,-928.94,0.00023551,2]
[374596447,1753368647013,-500.0,0.00023556,2]
[374596449,1753368647022,-500.0,0.00023556,2]
[374596451,1753368647032,-1013.41217068,0.00023659,9]
[374596453,1753368647042,-531.46,0.00023822,2]
[374596455,1753368647052,-910.59,0.00023824,2]
[374596457,1753368647063,-460.0,0.00023825,2]
[374596460,1753368647073,-460.0,0.00023825,2]
[374596462,1753368647082,-928.94,0.00023825,2]
[374596463,1753368647092,-383.0,0.00023829,2]
[374596466,1753368647101,-500.0,0.0002383,2]
[374596467,1753368647110,-500.0,0.0002383,2]
[374596469,1753368647120,-1013.41217068,0.00023831,10]
[374596471,1753368647129,-151.0,0.00023858,6]
[374596473,1753368647139,-500.0,0.00023874,2]
[374596475,1753368647148,-359.91536872,0.000239,2]
[374596477,1753368647157,-223.0315306,0.00023977,2]
[374596479,1753368647167,-1013.41217068,0.00024003,10]
[374596482,1753368647177,-531.46,0.00024096,2]
[374596483,1753368647187,-910.59,0.00024098,2]
[374596485,1753368647197,-460.0,0.00024099,2]
[374596487,1753368647206,-451.29,0.00024099,2]
[374596490,1753368647216,-928.94,0.00024099,2]
[374596491,1753368647225,-985.39,0.000241,7]
[374596494,1753368647235,-500.0,0.00024104,2]
[374596496,1753368647244,-500.0,0.00024104,2]
[374596498,1753368647253,-500.0,0.0002413,2]
[374596500,1753368647263,-3609.07108579,0.00024171,2]
[374596502,1753368647272,-1013.41217068,0.00024176,10]
[374596504,1753368647282,-151.0,0.0002419,6]
[374596506,1753368647291,-778.46,0.000242,2]
[374596507,1753368647300,-188.9393985,0.00024248,2]
[374596510,1753368647311,-2843.8520786,0.00024248,2]
[374596512,1753368647320,-500.0,0.00024273,2]
[374596514,1753368647330,-365.98063575,0.00024273,2]
[374596516,1753368647343,-134.01936425,0.00024273,2]
[374596518,1753368647352,-500.0,0.00024273,2]
[374596520,1753368647362,-1358.66,0.0002429,10]
[374596522,1753368647371,-2858.81118211,0.000243,4]
[374596524,1753368647382,-1861.8208864,0.000243,4]
[374596526,1753368647394,-1090.64616195,0.000243,4]
[374597364,1753368672782,150.0,0.00017459,2]
[374597375,1753368930751,200.0,0.0002556,120]
[374597380,1753369024816,400.0,0.00024658,120]
[374597383,1753369058549,150.0,0.00016594,2]
[374597385,1753369092501,183.02173939,0.000222,69]
[374597387,1753369120429,162.0,0.00024,120]
[374597388,1753369121821,162.0,0.000251,120]
[374597390,1753369168224,185.64383,0.00019178,2]
[374597402,1753369277938,198.00000001,0.00026027,120]
[374597405,1753369353608,5000.0,0.0001918,2]
[374597406,1753369368309,151.0,0.00026027,120]
[374597407,1753369369385,5000.0,0.0001918,2]
[374597409,1753369384610,5000.0,0.0001918,2]
[374597410,1753369401069,5000.0,0.0001918,2]
[374597413,1753369416848,3564.35617,0.0001918,2]
[374597414,1753369416874,1435.64383,0.0001918,2]
[374597416,1753369439750,210.811865,0.00018761,2]
[374597417,1753369446813,151.31957851,0.000191,7]
[374597420,1753369532158,-208.90930318,0.00019512,2]
[374597421,1753369532183,-673.88,0.00019604,3]
[374597422,1753369532209,-300.0,0.00019609,2]
[374597423,1753369532231,-300.0,0.00019609,2]
[374597424,1753369532255,-54.35337142,0.00019609,2]
[374597425,1753369551849,461.98034595,0.00019022,2]
[374597426,1753369552317,230.99017298,0.00019022,2]
[374597433,1753369588419,157.537137,0.00013699,2]
[374597434,1753369626268,-500.0,0.00019609,2]
[374597435,1753369626292,-309.23474408,0.00019609,2]
[374597436,1753369634082,-190.76525592,0.00019609,2]
[374597437,1753369634105,-199.69132454,0.00019609,2]
[374597438,1753369635080,-300.30867546,0.00019609,2]
[374597439,1753369635103,-500.0,0.00019609,2]
[374597440,1753369635126,-500.0,0.00019609,2]
[374597441,1753369635150,-500.0,0.00019609,2]
[374597442,1753369635173,-500.0,0.00019609,2]
[374597443,1753369635196,-428.82107626,0.00019609,2]
[374597444,1753369641297,744.03381328,0.00021918,120]
[374597445,1753369664310,5000.0,0.00019178,2]
[374597448,1753369755128,-300.0,0.00019607,2]
[374597449,1753369755149,-500.0,0.00019608,2]
[374597450,1753369755173,-500.0,0.00019608,2]
[374597451,1753369755196,-500.0,0.00019608,2]
[374597452,1753369755221,-500.0,0.00019608,2]
[374597453,1753369755241,-500.0,0.00019608,2]
[374597454,1753369755264,-500.0,0.00019608,2]
[374597455,1753369755285,-500.0,0.00019608,2]
[374597456,1753369755306,-227.02631125,0.00019608,2]
[374597477,1753369831943,299.92947393,0.000189,2]
[374597478,1753369831960,-180.71735524,0.00019509,2]
[374597479,1753369831970,-1200.0,0.00019606,2]
[374597480,1753369831980,-460.0,0.00019607,2]
[374597481,1753369831990,-460.0,0.00019607,2]
[374597482,1753369831999,-461.99101554,0.00019607,2]
[374597483,1753369832009,-245.0,0.00019607,2]
[374597484,1753369832022,-241.40856239,0.00019607,2]
[374597485,1753369832034,-58.59143761,0.00019607,2]
[374597486,1753369832044,-464.0,0.00019607,2]
[374597487,1753369832053,-300.0,0.00019607,2]
[374597488,1753369832063,-460.0,0.00019607,2]
[374597489,1753369832073,-460.0,0.00019607,2]
[374597490,1753369832083,-460.0,0.00019607,2]
[374597491,1753369832094,-207.58775708,0.00019608,2]
[374597492,1753369832104,-500.0,0.00019608,2]
[374597493,1753369832114,-500.0,0.00019608,2]
[374597494,1753369832123,-500.0,0.00019608,2]
[374597495,1753369832133,-500.0,0.00019608,2]
[374597496,1753369832143,-500.0,0.00019608,2]
[374597497,1753369832152,-500.0,0.00019608,2]
[374597498,1753369832162,-500.0,0.00019608,2]
[374597503,1753369832171,-81.82281635,0.00019608,2]
[374597504,1753369832440,-418.17718365,0.00019608,2]
[374597505,1753369832450,-316.33653896,0.00019608,2]
[374597506,1753369832460,-144.38627739,0.00019608,2]
[374597507,1753369832485,-355.61372261,0.00019608,2]
[374597508,1753369832495,-596.81772574,0.00019608,2]
[374597509,1753369832505,-500.0,0.00019608,2]
[374597510,1753369832518,-500.0,0.00019608,2]
[374597511,1753369832527,-460.0,0.00019608,2]
[374597512,1753369832537,-1817.27,0.00019608,2]
[374597513,1753369832547,-460.0,0.00019608,2]
[374597514,1753369832556,-460.0,0.00019608,2]
[374597515,1753369832565,-460.0,0.00019608,2]
[374597517,1753369832574,-622.61,0.00019608,2]
[374597519,1753369832584,-1200.0,0.00019609,2]
[374597521,1753369832593,-460.0,0.00019609,2]
[374597523,1753369832603,-460.0,0.00019609,2]
[374597525,1753369832612,-460.0,0.00019609,2]
[374597527,1753369832621,-460.0,0.00019609,2]
[374597529,1753369832630,-460.0,0.00019609,2]
[374597531,1753369832640,-460.0,0.00019609,2]
[374597533,1753369832650,-155.48105206,0.00019609,2]
[374597535,1753369832659,-460.0,0.00019609,2]
[374597536,1753369832668,-460.0,0.00019609,2]
[374597539,1753369832678,-462.94924179,0.00019609,2]
[374597540,1753369832687,-461.68189417,0.00019609,2]
[374597542,1753369832696,-460.0,0.00019609,2]
[374597544,1753369832706,-460.0,0.00019609,2]
[374597546,1753369832715,-460.0,0.00019609,2]
[374597548,1753369832725,-460.0,0.00019609,2]
[374597550,1753369832734,-568.76,0.00019609,2]
[374597552,1753369832743,-460.0,0.00019609,2]
[374597554,1753369832753,-460.0,0.00019609,2]
[374597556,1753369832765,-1345.73,0.00019609,2]
[374597558,1753369832775,-460.0,0.00019609,2]
[374597560,1753369832785,-460.0,0.00019609,2]
[374597562,1753369832794,-460.0,0.00019609,2]
[374597564,1753369832804,-460.0,0.00019609,2]
[374597566,1753369832813,-915.03,0.00019609,2]
[374597567,1753369832823,-5100.29230092,0.00019609,2]
[374597569,1753369832833,-476.04533938,0.00019609,2]
[374597571,1753369832843,-460.0,0.0001961,2]
[374597572,1753369832852,-460.0,0.0001961,2]
[374597574,1753369832861,-460.0,0.0001961,2]
[374597576,1753369832871,-460.0,0.0001961,2]
[374597578,1753369832881,-460.0,0.0001961,2]
[374597580,1753369832891,-460.0,0.0001961,2]
[374597582,1753369832900,-460.0,0.0001961,2]
[374597584,1753369832909,-460.0,0.0001961,2]
[374597585,1753369832919,-460.67562753,0.0001961,2]
[374597588,1753369832930,-504.73818587,0.0001961,2]
[374597590,1753369832940,-361.08042165,0.0001961,2]
[374597591,1753369832949,-460.0,0.0001961,2]
[374597593,1753369832958,-460.0,0.0001961,2]
[374597595,1753369832967,-460.0,0.0001961,2]
[374597597,1753369832977,-460.0,0.0001961,2]
[374597599,1753369832986,-1000.0,0.0001961,2]
[374597601,1753369832995,-460.0,0.0001961,2]
[374597603,1753369833004,-171.62878727,0.0001961,2]
[374597605,1753369833017,-550.98,0.0001961,2]
[374597608,1753369833027,-460.0,0.0001961,2]
[374597609,1753369833037,-460.0,0.0001961,2]
[374597611,1753369833047,-460.0,0.0001961,2]
[374597613,1753369833056,-460.0,0.0001961,2]
[374597615,1753369833066,-460.0,0.0001961,2]
[374597617,1753369833075,-460.0,0.0001961,2]
[374597619,1753369833086,-460.0,0.0001961,2]
[374597621,1753369833096,-460.0,0.0001961,2]
[374597623,1753369833108,-460.0,0.0001961,2]
[374597625,1753369833118,-460.0,0.0001961,2]
[374597627,1753369833128,-460.0,0.0001961,2]
[374597629,1753369833137,-460.0,0.0001961,2]
[374597631,1753369833147,-464.96080599,0.0001961,2]
[374597633,1753369833156,-500.0,0.0001961,2]
[374597635,1753369833166,-460.0,0.0001961,2]
[374597637,1753369833176,-460.0,0.0001961,2]
[374597639,1753369833185,-460.0,0.0001961,2]
[374597641,1753369833195,-460.0,0.0001961,2]
[374597643,1753369833207,-460.0,0.0001961,2]
[374597645,1753369833217,-460.0,0.0001961,2]
[374597647,1753369833226,-460.0,0.0001961,2]
[374597649,1753369833236,-460.0,0.0001961,2]
[374597650,1753369833247,-460.0,0.0001961,2]
[374597652,1753369833256,-460.0,0.0001961,2]
[374597654,1753369833268,-460.0,0.0001961,2]
[374597657,1753369833278,-460.0,0.0001961,2]
[374597658,1753369833289,-2764.12,0.0001961,2]
[374597660,1753369833300,-460.0,0.0001961,2]
[374597663,1753369833309,-460.0,0.0001961,2]
[374597664,1753369833319,-460.0,0.0001961,2]
[374597666,1753369833328,-460.0,0.0001961,2]
[374597668,1753369833338,-460.0,0.0001961,2]
[374597670,1753369833348,-460.0,0.0001961,2]
[374597673,1753369833358,-500.0,0.00019611,2]
[374597675,1753369833368,-685.24649812,0.00019611,2]
[374597677,1753369833377,-4092.0314247,0.00019611,2]
[374597679,1753369833386,-506.64214284,0.00019612,2]
[374597680,1753369833396,-455.14019,0.00019612,2]
[374597682,1753369833405,-460.0,0.00019612,2]
[374597684,1753369833415,-460.77409134,0.00019612,2]
[374597686,1753369833425,-461.09084379,0.00019612,2]
[374597688,1753369833435,-461.38223286,0.00019612,2]
[374597690,1753369833445,-559.00451697,0.00019612,2]
[374597693,1753369833455,-460.0,0.00019612,2]
[374597695,1753369833465,-460.0,0.00019612,2]
[374597697,1753369833475,-460.0,0.00019612,2]
[374597698,1753369833485,-460.0,0.00019612,2]
[374597700,1753369833495,-460.0,0.00019612,2]
[374597702,1753369833504,-460.0,0.00019612,2]
[374597704,1753369833515,-460.0,0.00019612,2]
[374597707,1753369833529,-500.0,0.00019612,2]
[374597709,1753369833540,-222.34801114,0.00019613,3]
[374597711,1753369833549,-461.16635307,0.00019613,2]
[374597713,1753369833559,-460.0,0.00019613,2]
[374597715,1753369833568,-460.0,0.00019613,2]
[374597717,1753369833577,-460.0,0.00019613,2]
[374597719,1753369833587,-460.0,0.00019613,2]
[374597721,1753369833597,-460.0,0.00019613,2]
[374597723,1753369833606,-500.0,0.00019613,2]
[374597725,1753369833615,-460.0,0.00019613,2]
[374597726,1753369833625,-574.09510972,0.00019613,2]
[374597728,1753369833635,-460.0,0.00019613,2]
[374597730,1753369833644,-460.0,0.00019613,2]
[374597732,1753369833653,-460.0,0.00019613,2]
[374597734,1753369833662,-460.0,0.00019613,2]
[374597736,1753369833671,-460.0,0.00019613,2]
[374597738,1753369833681,-460.0,0.00019613,2]
[374597740,1753369833690,-462.68586432,0.00019613,2]
[374597742,1753369833699,-460.0,0.00019613,2]
[374597744,1753369833709,-466.21546086,0.00019613,2]
[374597746,1753369833719,-460.0,0.00019613,2]
[374597748,1753369833730,-460.0,0.00019613,2]